[Event "Titled Tuesday Blitz February 07 Early 2023"]
[White "Lehtosaari, Mauri"]
[Black "Daneshvar, Bardiya"]
[WhiteFideId "501999"]
[BlackFideId "12576468"]
[WhiteElo "2176"]
[BlackElo "2540"]
[Result "0-1"]
[Round "01"]
[TimeControl "180+2"]
[Date "2023.02.07"]
[WhiteClock "0:00:04"]
[BlackClock "0:01:27"]

1. d4 {[%clk 0:02:57]}  Nf6 {[%clk 0:02:59]} 2. Nf3 {[%clk 0:02:57]}  g6 {[%clk 0:02:58]} 3. Bg5 {[%clk 0:02:58]}  e6 {[%clk 0:02:57]} 4. Nbd2 {[%clk 0:02:58]}  h6 {[%clk 0:02:58]} 5. Bxf6 {[%clk 0:02:58]}  Qxf6 {[%clk 0:02:58]} 6. e4 {[%clk 0:02:57]}  Bg7 {[%clk 0:02:57]} 7. e5 {[%clk 0:02:56]}  Qe7 {[%clk 0:02:57]} 8. Bd3 {[%clk 0:02:57]}  d6 {[%clk 0:02:55]} 9. exd6 {[%clk 0:02:53]}  cxd6 {[%clk 0:02:54]} 10. O-O {[%clk 0:02:54]}  O-O {[%clk 0:02:52]} 11. c3 {[%clk 0:02:54]}  Nc6 {[%clk 0:02:52]} 12. Re1 {[%clk 0:02:53]}  e5 {[%clk 0:02:51]} 13. h3 {[%clk 0:02:32]}  f5 {[%clk 0:02:46]} 14. dxe5 {[%clk 0:01:32]}  dxe5 {[%clk 0:02:46]} 15. Bc4+ {[%clk 0:01:27]}  Kh7 {[%clk 0:02:44]} 16. Qc2 {[%clk 0:01:28]}  e4 {[%clk 0:02:41]} 17. Nh2 {[%clk 0:01:26]}  Ne5 {[%clk 0:02:40]} 18. Bb3 {[%clk 0:01:20]}  Qg5 {[%clk 0:02:29]} 19. Ndf1 {[%clk 0:01:04]}  Bd7 {[%clk 0:02:24]} 20. Qd2 {[%clk 0:00:56]}  Rad8 {[%clk 0:02:16]} 21. Qxg5 {[%clk 0:00:56]}  hxg5 {[%clk 0:02:11]} 22. Rad1 {[%clk 0:00:56]}  Bb5 {[%clk 0:02:05]} 23. Ne3 {[%clk 0:00:37]}  Nd3 {[%clk 0:02:03]} 24. Re2 {[%clk 0:00:29]}  Rd7 {[%clk 0:01:53]} 25. Red2 {[%clk 0:00:28]}  Be5 {[%clk 0:01:48]} 26. Nhf1 {[%clk 0:00:27]}  Rfd8 {[%clk 0:01:42]} 27. Nc4 {[%clk 0:00:20]}  Bxc4 {[%clk 0:01:41]} 28. Bxc4 {[%clk 0:00:20]}  Bf4 {[%clk 0:01:40]} 29. Re2 {[%clk 0:00:18]}  Ne5 {[%clk 0:01:31]} 30. Rxd7+ {[%clk 0:00:19]}  Rxd7 {[%clk 0:01:32]} 31. Bb3 {[%clk 0:00:18]}  Bc1 {[%clk 0:01:31]} 32. Ne3 {[%clk 0:00:18]}  Bxe3 {[%clk 0:01:30]} 33. fxe3 {[%clk 0:00:18]}  Kg7 {[%clk 0:01:30]} 34. Kf1 {[%clk 0:00:17]}  Kf6 {[%clk 0:01:30]} 35. Ke1 {[%clk 0:00:15]}  Nd3+ {[%clk 0:01:30]} 36. Kf1 {[%clk 0:00:15]}  Nc1 {[%clk 0:01:29]} 37. Rc2 {[%clk 0:00:13]}  Rd1+ {[%clk 0:01:28]} 38. Kf2 {[%clk 0:00:12]}  Nd3+ {[%clk 0:01:28]} 39. Kg3 {[%clk 0:00:12]}  Re1 {[%clk 0:01:28]} 40. Kh2 {[%clk 0:00:09]}  Rxe3 {[%clk 0:01:27]} 41. c4 {[%clk 0:00:09]}  Nc5 {[%clk 0:01:26]} 42. Rd2 {[%clk 0:00:07]}  Rd3 {[%clk 0:01:26]} 43. Rf2 {[%clk 0:00:04]}  Ke5 {[%clk 0:01:26]} 44. Bc2 {[%clk 0:00:04]}  Rd4 {[%clk 0:01:26]} 45. b3 {[%clk 0:00:04]}  e3 {[%clk 0:01:26]} 46. Re2 {[%clk 0:00:04]}  f4 {[%clk 0:01:27]} 47. Kg1 {[%clk 0:00:04]}  Ne4 {[%clk 0:01:27]} 0-1


[Site "https://www.chess.com"]

[Event "Titled Tuesday Blitz February 07 Early 2023"]
[White "Omelja, Artem"]
[Black "Paravyan, David"]
[WhiteFideId "14119846"]
[BlackFideId "4194985"]
[WhiteElo "2446"]
[BlackElo "2601"]
[Result "1/2-1/2"]
[Round "01"]
[TimeControl "180+2"]
[Date "2023.02.07"]
[WhiteClock "0:01:03"]
[BlackClock "0:00:25"]

1. e4 {[%clk 0:02:59]}  e5 {[%clk 0:02:59]} 2. Nf3 {[%clk 0:02:59]}  Nf6 {[%clk 0:02:58]} 3. Nc3 {[%clk 0:03:00]}  Nc6 {[%clk 0:02:58]} 4. d4 {[%clk 0:03:00]}  exd4 {[%clk 0:02:58]} 5. Nxd4 {[%clk 0:03:01]}  Bb4 {[%clk 0:02:58]} 6. Nxc6 {[%clk 0:03:00]}  bxc6 {[%clk 0:02:59]} 7. Bd3 {[%clk 0:03:00]}  O-O {[%clk 0:02:59]} 8. O-O {[%clk 0:03:00]}  d5 {[%clk 0:03:00]} 9. exd5 {[%clk 0:03:01]}  cxd5 {[%clk 0:03:01]} 10. Bg5 {[%clk 0:03:01]}  c6 {[%clk 0:02:58]} 11. Qf3 {[%clk 0:02:59]}  Bd6 {[%clk 0:02:52]} 12. Bxf6 {[%clk 0:02:58]}  Qxf6 {[%clk 0:02:51]} 13. Qxf6 {[%clk 0:02:58]}  gxf6 {[%clk 0:02:52]} 14. Ne2 {[%clk 0:02:49]}  Bd7 {[%clk 0:02:50]} 15. c3 {[%clk 0:02:46]}  Rfb8 {[%clk 0:02:48]} 16. b3 {[%clk 0:02:46]}  a5 {[%clk 0:02:49]} 17. Ng3 {[%clk 0:02:44]}  c5 {[%clk 0:02:38]} 18. Bf5 {[%clk 0:02:41]}  Be6 {[%clk 0:02:30]} 19. Rfe1 {[%clk 0:02:33]}  Be5 {[%clk 0:02:26]} 20. Rac1 {[%clk 0:02:10]}  a4 {[%clk 0:02:25]} 21. Bxe6 {[%clk 0:01:56]}  fxe6 {[%clk 0:02:26]} 22. c4 {[%clk 0:01:57]}  Ra5 {[%clk 0:01:20]} 23. cxd5 {[%clk 0:01:43]}  exd5 {[%clk 0:01:19]} 24. Red1 {[%clk 0:01:43]}  Bxg3 {[%clk 0:00:52]} 25. hxg3 {[%clk 0:01:38]}  d4 {[%clk 0:00:53]} 26. bxa4 {[%clk 0:01:32]}  Rb4 {[%clk 0:00:47]} 27. Rd2 {[%clk 0:01:24]}  Rbxa4 {[%clk 0:00:46]} 28. Rdc2 {[%clk 0:01:23]}  d3 {[%clk 0:00:35]} 29. Rxc5 {[%clk 0:01:09]}  d2 {[%clk 0:00:35]} 30. Rc8+ {[%clk 0:01:08]}  Kg7 {[%clk 0:00:34]} 31. Rd1 {[%clk 0:01:06]}  Rxa2 {[%clk 0:00:25]} 32. Rd8 {[%clk 0:01:03]}  h5 {[%clk 0:00:24]} 33. R8xd2 {[%clk 0:01:02]}  Rxd2 {[%clk 0:00:25]} 34. Rxd2 {[%clk 0:01:03]}  Kg6 {[%clk 0:00:25]} 1/2-1/2


[Site "https://www.chess.com"]

[Event "Titled Tuesday Blitz February 07 Early 2023"]
[White "Sjugirov, Sanan"]
[Black "Mostbauer, Maximilian"]
[WhiteFideId "4189302"]
[BlackFideId "1626680"]
[WhiteElo "2712"]
[BlackElo "2167"]
[Result "1-0"]
[Round "01"]
[TimeControl "180+2"]
[Date "2023.02.07"]
[WhiteClock "0:00:15"]
[BlackClock "0:00:23"]

1. d4 {[%clk 0:02:59]}  e6 {[%clk 0:03:00]} 2. c4 {[%clk 0:02:58]}  b6 {[%clk 0:03:00]} 3. Nf3 {[%clk 0:02:54]}  Bb7 {[%clk 0:03:00]} 4. g3 {[%clk 0:02:53]}  Nf6 {[%clk 0:03:00]} 5. Bg2 {[%clk 0:02:53]}  g6 {[%clk 0:03:01]} 6. Nc3 {[%clk 0:02:44]}  Ne4 {[%clk 0:03:00]} 7. d5 {[%clk 0:02:43]}  Nxc3 {[%clk 0:03:00]} 8. Qd4 {[%clk 0:02:38]}  Rg8 {[%clk 0:02:49]} 9. Qxc3 {[%clk 0:02:31]}  Bg7 {[%clk 0:02:49]} 10. Qb3 {[%clk 0:02:20]}  Na6 {[%clk 0:02:40]} 11. O-O {[%clk 0:02:12]}  Qe7 {[%clk 0:02:35]} 12. Rd1 {[%clk 0:02:01]}  e5 {[%clk 0:02:22]} 13. a3 {[%clk 0:01:45]}  Nc5 {[%clk 0:01:55]} 14. Qc2 {[%clk 0:01:45]}  a5 {[%clk 0:01:55]} 15. Bg5 {[%clk 0:01:26]}  f6 {[%clk 0:01:55]} 16. Be3 {[%clk 0:01:27]}  a4 {[%clk 0:01:52]} 17. Nd2 {[%clk 0:01:23]}  d6 {[%clk 0:01:49]} 18. Nb1 {[%clk 0:01:01]}  Bc8 {[%clk 0:01:48]} 19. Bxc5 {[%clk 0:00:52]}  bxc5 {[%clk 0:01:48]} 20. Nc3 {[%clk 0:00:52]}  Bd7 {[%clk 0:01:48]} 21. b3 {[%clk 0:00:49]}  axb3 {[%clk 0:01:47]} 22. Qxb3 {[%clk 0:00:50]}  Kf7 {[%clk 0:01:47]} 23. a4 {[%clk 0:00:50]}  Rgb8 {[%clk 0:01:45]} 24. Nb5 {[%clk 0:00:49]}  Bxb5 {[%clk 0:01:31]} 25. cxb5 {[%clk 0:00:38]}  Ra5 {[%clk 0:01:31]} 26. Qc4 {[%clk 0:00:36]}  Rba8 {[%clk 0:01:18]} 27. e4 {[%clk 0:00:37]}  Qd7 {[%clk 0:01:18]} 28. Ra2 {[%clk 0:00:32]}  Kg8 {[%clk 0:01:05]} 29. h4 {[%clk 0:00:27]}  Bh6 {[%clk 0:00:53]} 30. Kh2 {[%clk 0:00:27]}  Qd8 {[%clk 0:00:43]} 31. Bh3 {[%clk 0:00:27]}  R8a7 {[%clk 0:00:43]} 32. Rd3 {[%clk 0:00:23]}  Qa8 {[%clk 0:00:43]} 33. Rda3 {[%clk 0:00:23]}  Bg7 {[%clk 0:00:43]} 34. Bd7 {[%clk 0:00:22]}  Qd8 {[%clk 0:00:33]} 35. Bc6 {[%clk 0:00:21]}  Qc8 {[%clk 0:00:33]} 36. Kg2 {[%clk 0:00:19]}  Qg4 {[%clk 0:00:33]} 37. f3 {[%clk 0:00:17]}  Qc8 {[%clk 0:00:33]} 38. Rb3 {[%clk 0:00:16]}  Bh6 {[%clk 0:00:32]} 39. b6 {[%clk 0:00:15]}  cxb6 {[%clk 0:00:31]} 40. Rxb6 {[%clk 0:00:16]}  Be3 {[%clk 0:00:28]} 41. Rab2 {[%clk 0:00:15]}  Rxa4 {[%clk 0:00:23]} 42. Bxa4 {[%clk 0:00:15]} 1-0


[Site "https://www.chess.com"]

[Event "Titled Tuesday Blitz February 07 Early 2023"]
[White "Di Nicolantonio, Lucas"]
[Black "Korobov, Anton"]
[WhiteFideId "680460"]
[BlackFideId "14105730"]
[WhiteElo "2376"]
[BlackElo "2664"]
[Result "0-1"]
[Round "01"]
[TimeControl "180+2"]
[Date "2023.02.07"]
[WhiteClock "0:00:06"]
[BlackClock "0:00:33"]

1. Nf3 {[%clk 0:02:58]}  d5 {[%clk 0:02:58]} 2. e3 {[%clk 0:02:58]}  c6 {[%clk 0:02:59]} 3. c4 {[%clk 0:02:59]}  Nf6 {[%clk 0:02:59]} 4. Nc3 {[%clk 0:03:00]}  a6 {[%clk 0:02:56]} 5. d4 {[%clk 0:02:58]}  Bf5 {[%clk 0:02:56]} 6. Bd3 {[%clk 0:02:48]}  Bxd3 {[%clk 0:02:56]} 7. Qxd3 {[%clk 0:02:49]}  e6 {[%clk 0:02:56]} 8. O-O {[%clk 0:02:49]}  Bb4 {[%clk 0:02:56]} 9. Bd2 {[%clk 0:02:48]}  Ba5 {[%clk 0:02:52]} 10. Rab1 {[%clk 0:02:38]}  O-O {[%clk 0:02:50]} 11. b4 {[%clk 0:02:37]}  Bc7 {[%clk 0:02:50]} 12. a4 {[%clk 0:02:34]}  Nbd7 {[%clk 0:02:41]} 13. Rfd1 {[%clk 0:02:30]}  Nb6 {[%clk 0:02:32]} 14. cxd5 {[%clk 0:02:30]}  cxd5 {[%clk 0:02:26]} 15. h3 {[%clk 0:02:11]}  Rc8 {[%clk 0:02:18]} 16. b5 {[%clk 0:02:09]}  a5 {[%clk 0:02:11]} 17. Ne5 {[%clk 0:02:09]}  Bxe5 {[%clk 0:02:06]} 18. dxe5 {[%clk 0:02:08]}  Nfd7 {[%clk 0:02:07]} 19. f4 {[%clk 0:01:55]}  Rc4 {[%clk 0:02:03]} 20. Rdc1 {[%clk 0:01:02]}  Nc5 {[%clk 0:01:56]} 21. Qe2 {[%clk 0:00:59]}  Ncxa4 {[%clk 0:01:47]} 22. Nxa4 {[%clk 0:00:57]}  Rxa4 {[%clk 0:01:48]} 23. Bc3 {[%clk 0:00:48]}  Nc4 {[%clk 0:01:41]} 24. Bd4 {[%clk 0:00:47]}  Qe7 {[%clk 0:01:15]} 25. Rf1 {[%clk 0:00:44]}  Rb4 {[%clk 0:01:10]} 26. Rxb4 {[%clk 0:00:35]}  axb4 {[%clk 0:01:11]} 27. f5 {[%clk 0:00:36]}  exf5 {[%clk 0:01:10]} 28. Rxf5 {[%clk 0:00:25]}  b3 {[%clk 0:01:07]} 29. Rf1 {[%clk 0:00:18]}  Ra8 {[%clk 0:01:07]} 30. e4 {[%clk 0:00:16]}  Qe6 {[%clk 0:01:01]} 31. exd5 {[%clk 0:00:14]}  Qxd5 {[%clk 0:01:02]} 32. Qg4 {[%clk 0:00:14]}  Qe6 {[%clk 0:00:57]} 33. Qh4 {[%clk 0:00:12]}  h6 {[%clk 0:00:57]} 34. Bc3 {[%clk 0:00:11]}  b2 {[%clk 0:00:53]} 35. Kh2 {[%clk 0:00:09]}  Qg6 {[%clk 0:00:37]} 36. e6 {[%clk 0:00:08]}  Qxe6 {[%clk 0:00:36]} 37. Qg3 {[%clk 0:00:07]}  Qd6 {[%clk 0:00:34]} 38. Rf4 {[%clk 0:00:06]}  g5 {[%clk 0:00:33]} 0-1


[Site "https://www.chess.com"]

[Event "Titled Tuesday Blitz February 07 Early 2023"]
[White "Mogranzini, Roberto"]
[Black "Sychev, Klementy"]
[WhiteFideId "810894"]
[BlackFideId "4114060"]
[WhiteElo "2459"]
[BlackElo "2547"]
[Result "1/2-1/2"]
[Round "01"]
[TimeControl "180+2"]
[Date "2023.02.07"]
[WhiteClock "0:00:19"]
[BlackClock "0:00:11"]

1. e4 {[%clk 0:02:58]}  e5 {[%clk 0:02:59]} 2. Nf3 {[%clk 0:02:58]}  Nc6 {[%clk 0:02:59]} 3. Bb5 {[%clk 0:02:59]}  a6 {[%clk 0:03:00]} 4. Ba4 {[%clk 0:02:59]}  b5 {[%clk 0:03:00]} 5. Bb3 {[%clk 0:02:59]}  Na5 {[%clk 0:03:00]} 6. d3 {[%clk 0:02:56]}  d6 {[%clk 0:02:59]} 7. O-O {[%clk 0:02:56]}  Ne7 {[%clk 0:02:57]} 8. Bg5 {[%clk 0:02:51]}  h6 {[%clk 0:02:54]} 9. Bxe7 {[%clk 0:02:50]}  Bxe7 {[%clk 0:02:52]} 10. Nc3 {[%clk 0:02:51]}  O-O {[%clk 0:02:47]} 11. Nd5 {[%clk 0:02:51]}  Nxb3 {[%clk 0:02:41]} 12. axb3 {[%clk 0:02:50]}  f5 {[%clk 0:02:42]} 13. exf5 {[%clk 0:02:49]}  Bxf5 {[%clk 0:02:41]} 14. Nxe7+ {[%clk 0:02:46]}  Qxe7 {[%clk 0:02:42]} 15. Nd2 {[%clk 0:02:46]}  Qg5 {[%clk 0:02:40]} 16. Ne4 {[%clk 0:02:41]}  Qg6 {[%clk 0:02:40]} 17. Ng3 {[%clk 0:02:39]}  Bc8 {[%clk 0:02:37]} 18. d4 {[%clk 0:02:16]}  exd4 {[%clk 0:02:33]} 19. Qxd4 {[%clk 0:02:17]}  Bb7 {[%clk 0:02:32]} 20. c4 {[%clk 0:02:18]}  Kh8 {[%clk 0:01:55]} 21. Rae1 {[%clk 0:01:41]}  Rf7 {[%clk 0:01:52]} 22. Re2 {[%clk 0:01:32]}  Raf8 {[%clk 0:01:46]} 23. Rfe1 {[%clk 0:01:31]}  bxc4 {[%clk 0:01:43]} 24. bxc4 {[%clk 0:01:31]}  Bc6 {[%clk 0:01:36]} 25. f3 {[%clk 0:01:29]}  Kg8 {[%clk 0:01:34]} 26. c5 {[%clk 0:01:10]}  Bb5 {[%clk 0:01:21]} 27. Re7 {[%clk 0:01:04]}  Qc2 {[%clk 0:01:08]} 28. cxd6 {[%clk 0:00:55]}  cxd6 {[%clk 0:01:04]} 29. b4 {[%clk 0:00:43]}  Qc6 {[%clk 0:00:43]} 30. Nf5 {[%clk 0:00:38]}  Kh7 {[%clk 0:00:17]} 31. Nxg7 {[%clk 0:00:31]}  Rxe7 {[%clk 0:00:15]} 32. Rxe7 {[%clk 0:00:30]}  Qc1+ {[%clk 0:00:14]} 33. Kf2 {[%clk 0:00:21]}  Qc2+ {[%clk 0:00:13]} 34. Kg1 {[%clk 0:00:20]}  Qc1+ {[%clk 0:00:12]} 35. Kf2 {[%clk 0:00:20]}  Qc2+ {[%clk 0:00:12]} 36. Kg1 {[%clk 0:00:19]}  Qc1+ {[%clk 0:00:11]} 1/2-1/2


[Site "https://www.chess.com"]

[Event "Titled Tuesday Blitz February 07 Early 2023"]
[White "Chigaev, Maksim"]
[Black "Gurevich, Dmitry"]
[WhiteFideId "4108116"]
[BlackFideId "2000407"]
[WhiteElo "2628"]
[BlackElo "2393"]
[Result "1-0"]
[Round "01"]
[TimeControl "180+2"]
[Date "2023.02.07"]
[WhiteClock "0:00:06"]
[BlackClock "0:00:45"]

1. e4 {[%clk 0:02:49]}  c5 {[%clk 0:02:58]} 2. Nf3 {[%clk 0:02:49]}  d6 {[%clk 0:02:57]} 3. d4 {[%clk 0:02:45]}  cxd4 {[%clk 0:02:57]} 4. Nxd4 {[%clk 0:02:42]}  Nf6 {[%clk 0:02:56]} 5. Nc3 {[%clk 0:02:41]}  Nc6 {[%clk 0:02:56]} 6. Bg5 {[%clk 0:02:37]}  e6 {[%clk 0:02:55]} 7. Qd2 {[%clk 0:02:37]}  Be7 {[%clk 0:02:55]} 8. O-O-O {[%clk 0:02:36]}  O-O {[%clk 0:02:55]} 9. f4 {[%clk 0:02:36]}  h6 {[%clk 0:02:54]} 10. h4 {[%clk 0:02:34]}  Nxd4 {[%clk 0:02:52]} 11. Qxd4 {[%clk 0:02:34]}  Qa5 {[%clk 0:02:52]} 12. Be2 {[%clk 0:02:19]}  e5 {[%clk 0:02:50]} 13. Qf2 {[%clk 0:02:10]}  exf4 {[%clk 0:02:45]} 14. Nd5 {[%clk 0:01:51]}  Nxd5 {[%clk 0:02:34]} 15. Rxd5 {[%clk 0:01:52]}  Qxa2 {[%clk 0:02:30]} 16. Bxe7 {[%clk 0:01:52]}  Qa1+ {[%clk 0:02:27]} 17. Kd2 {[%clk 0:01:34]}  Qxh1 {[%clk 0:02:27]} 18. Bxf8 {[%clk 0:01:34]}  Kxf8 {[%clk 0:02:24]} 19. Rxd6 {[%clk 0:01:27]}  Be6 {[%clk 0:02:24]} 20. Qxf4 {[%clk 0:01:20]}  Kg8 {[%clk 0:02:24]} 21. Bf3 {[%clk 0:01:17]}  Qa1 {[%clk 0:02:16]} 22. Qe5 {[%clk 0:01:16]}  Qg1 {[%clk 0:02:09]} 23. Qd4 {[%clk 0:01:15]}  Qh2 {[%clk 0:02:00]} 24. e5 {[%clk 0:01:14]}  Rb8 {[%clk 0:01:40]} 25. h5 {[%clk 0:01:10]}  Qg3 {[%clk 0:01:33]} 26. Rd8+ {[%clk 0:01:04]}  Rxd8 {[%clk 0:01:32]} 27. Qxd8+ {[%clk 0:01:05]}  Kh7 {[%clk 0:01:30]} 28. Be4+ {[%clk 0:01:06]}  g6 {[%clk 0:01:28]} 29. hxg6+ {[%clk 0:01:06]}  fxg6 {[%clk 0:01:19]} 30. Qe7+ {[%clk 0:01:05]}  Kh8 {[%clk 0:01:18]} 31. Qxe6 {[%clk 0:00:50]}  Qf4+ {[%clk 0:01:14]} 32. Kd3 {[%clk 0:00:50]}  Qf1+ {[%clk 0:01:09]} 33. Kd4 {[%clk 0:00:48]}  Qf2+ {[%clk 0:01:05]} 34. Kd5 {[%clk 0:00:06]}  Qd2+ {[%clk 0:00:48]} 35. Kc4 {[%clk 0:00:06]}  b5+ {[%clk 0:00:45]} 36. Kb3 {[%clk 0:00:06]} 1-0


[Site "https://www.chess.com"]

[Event "Titled Tuesday Blitz February 07 Early 2023"]
[White "Seletsky, Grigory"]
[Black "Ibarra Jerez, Jose Carlos"]
[WhiteFideId "14112191"]
[BlackFideId "2226332"]
[WhiteElo "2259"]
[BlackElo "2563"]
[Result "0-1"]
[Round "01"]
[TimeControl "180+2"]
[Date "2023.02.07"]
[WhiteClock "0:00:16"]
[BlackClock "0:00:40"]

1. d4 {[%clk 0:02:58]}  Nf6 {[%clk 0:02:59]} 2. Nf3 {[%clk 0:02:59]}  g6 {[%clk 0:02:59]} 3. Bg5 {[%clk 0:02:58]}  Bg7 {[%clk 0:02:59]} 4. c3 {[%clk 0:02:58]}  O-O {[%clk 0:03:00]} 5. Nbd2 {[%clk 0:02:58]}  d6 {[%clk 0:03:00]} 6. e4 {[%clk 0:02:58]}  c5 {[%clk 0:03:00]} 7. dxc5 {[%clk 0:02:58]}  dxc5 {[%clk 0:03:01]} 8. Qc2 {[%clk 0:02:57]}  Nc6 {[%clk 0:03:02]} 9. Be2 {[%clk 0:02:57]}  Qc7 {[%clk 0:03:00]} 10. O-O {[%clk 0:02:57]}  h6 {[%clk 0:03:00]} 11. Bh4 {[%clk 0:02:56]}  Nh5 {[%clk 0:03:00]} 12. Bg3 {[%clk 0:02:55]}  Nxg3 {[%clk 0:02:58]} 13. hxg3 {[%clk 0:02:55]}  b6 {[%clk 0:02:56]} 14. a4 {[%clk 0:02:53]}  h5 {[%clk 0:02:55]} 15. Rfe1 {[%clk 0:02:53]}  Bb7 {[%clk 0:02:53]} 16. Nc4 {[%clk 0:02:50]}  Rad8 {[%clk 0:02:50]} 17. Bf1 {[%clk 0:02:50]}  Bc8 {[%clk 0:02:47]} 18. Rad1 {[%clk 0:02:47]}  Rxd1 {[%clk 0:02:45]} 19. Rxd1 {[%clk 0:02:47]}  Rd8 {[%clk 0:02:45]} 20. Rxd8+ {[%clk 0:02:47]}  Qxd8 {[%clk 0:02:46]} 21. Qd3 {[%clk 0:02:47]}  Qxd3 {[%clk 0:02:45]} 22. Bxd3 {[%clk 0:02:47]}  Bh6 {[%clk 0:02:36]} 23. Kf1 {[%clk 0:02:44]}  f6 {[%clk 0:02:33]} 24. Ke2 {[%clk 0:02:44]}  Kf7 {[%clk 0:02:33]} 25. Ne3 {[%clk 0:02:32]}  e6 {[%clk 0:02:26]} 26. Nc4 {[%clk 0:02:12]}  Ke7 {[%clk 0:02:22]} 27. Nfd2 {[%clk 0:02:10]}  g5 {[%clk 0:02:16]} 28. f3 {[%clk 0:02:04]}  Bd7 {[%clk 0:02:15]} 29. Kd1 {[%clk 0:02:01]}  g4 {[%clk 0:02:11]} 30. Ke2 {[%clk 0:01:54]}  f5 {[%clk 0:02:07]} 31. f4 {[%clk 0:01:29]}  h4 {[%clk 0:02:00]} 32. Kf2 {[%clk 0:01:29]}  Kf6 {[%clk 0:01:52]} 33. e5+ {[%clk 0:01:22]}  Ke7 {[%clk 0:01:45]} 34. Nf1 {[%clk 0:01:19]}  Nd8 {[%clk 0:01:39]} 35. Bc2 {[%clk 0:01:16]}  Nf7 {[%clk 0:01:35]} 36. Ke3 {[%clk 0:01:11]}  Bc6 {[%clk 0:01:26]} 37. Kf2 {[%clk 0:01:08]}  Nh8 {[%clk 0:01:17]} 38. gxh4 {[%clk 0:00:57]}  Bxf4 {[%clk 0:01:17]} 39. g3 {[%clk 0:00:57]}  Bh6 {[%clk 0:01:17]} 40. Nfe3 {[%clk 0:00:55]}  Bd5 {[%clk 0:01:10]} 41. Nxd5+ {[%clk 0:00:48]}  exd5 {[%clk 0:01:09]} 42. Ne3 {[%clk 0:00:49]}  Bxe3+ {[%clk 0:00:59]} 43. Kxe3 {[%clk 0:00:49]}  Ke6 {[%clk 0:01:00]} 44. Kf4 {[%clk 0:00:49]}  Ng6+ {[%clk 0:01:00]} 45. Kg5 {[%clk 0:00:49]}  f4 {[%clk 0:00:45]} 46. gxf4 {[%clk 0:00:39]}  g3 {[%clk 0:00:45]} 47. Bf5+ {[%clk 0:00:36]}  Kf7 {[%clk 0:00:42]} 48. Bh3 {[%clk 0:00:37]}  d4 {[%clk 0:00:42]} 49. cxd4 {[%clk 0:00:36]}  cxd4 {[%clk 0:00:42]} 50. h5 {[%clk 0:00:26]}  Nf8 {[%clk 0:00:41]} 51. Kh4 {[%clk 0:00:18]}  d3 {[%clk 0:00:41]} 52. Kxg3 {[%clk 0:00:18]}  d2 {[%clk 0:00:42]} 53. Bg4 {[%clk 0:00:18]}  Ne6 {[%clk 0:00:42]} 54. f5 {[%clk 0:00:18]}  Nd4 {[%clk 0:00:41]} 55. h6 {[%clk 0:00:17]}  Nxf5+ {[%clk 0:00:40]} 56. Kf4 {[%clk 0:00:16]}  Nxh6 {[%clk 0:00:41]} 57. Bh3 {[%clk 0:00:16]}  d1=Q {[%clk 0:00:40]} 0-1


[Site "https://www.chess.com"]

[Event "Titled Tuesday Blitz February 07 Early 2023"]
[White "Schekachikhin, Maksim"]
[Black "Vokhidov, Shamsiddin"]
[WhiteFideId "24177830"]
[BlackFideId "14204223"]
[WhiteElo "2371"]
[BlackElo "2586"]
[Result "0-1"]
[Round "01"]
[TimeControl "180+2"]
[Date "2023.02.07"]
[WhiteClock "0:00:23"]
[BlackClock "0:02:25"]

1. c4 {[%clk 0:03:00]}  Nf6 {[%clk 0:03:00]} 2. Nc3 {[%clk 0:03:00]}  c5 {[%clk 0:03:01]} 3. Nf3 {[%clk 0:02:59]}  d5 {[%clk 0:03:01]} 4. cxd5 {[%clk 0:02:58]}  Nxd5 {[%clk 0:03:02]} 5. e3 {[%clk 0:02:58]}  g6 {[%clk 0:03:01]} 6. Bc4 {[%clk 0:02:47]}  Nb6 {[%clk 0:02:57]} 7. Bb5+ {[%clk 0:02:44]}  Bd7 {[%clk 0:02:55]} 8. Bxd7+ {[%clk 0:02:40]}  Qxd7 {[%clk 0:02:55]} 9. O-O {[%clk 0:02:39]}  Bg7 {[%clk 0:02:55]} 10. d4 {[%clk 0:02:38]}  cxd4 {[%clk 0:02:55]} 11. exd4 {[%clk 0:02:37]}  O-O {[%clk 0:02:55]} 12. Re1 {[%clk 0:02:37]}  Nc6 {[%clk 0:02:51]} 13. d5 {[%clk 0:02:25]}  Nb4 {[%clk 0:02:50]} 14. Ne5 {[%clk 0:02:18]}  Qf5 {[%clk 0:02:49]} 15. g4 {[%clk 0:01:52]}  Qc2 {[%clk 0:02:48]} 16. Bf4 {[%clk 0:01:42]}  Qxb2 {[%clk 0:02:37]} 17. Rc1 {[%clk 0:01:39]}  Rac8 {[%clk 0:02:33]} 18. Re2 {[%clk 0:00:29]}  Qa3 {[%clk 0:02:32]} 19. Qb3 {[%clk 0:00:22]}  Qxb3 {[%clk 0:02:29]} 20. axb3 {[%clk 0:00:23]}  N6xd5 {[%clk 0:02:24]} 21. Nxd5 {[%clk 0:00:23]}  Nxd5 {[%clk 0:02:25]} 0-1


[Site "https://www.chess.com"]

[Event "Titled Tuesday Blitz February 07 Early 2023"]
[White "Mitrabha, Guha"]
[Black "Kleiman, Jake"]
[WhiteFideId "5057000"]
[BlackFideId "2020041"]
[WhiteElo "2507"]
[BlackElo "2399"]
[Result "1-0"]
[Round "01"]
[TimeControl "180+2"]
[Date "2023.02.07"]
[WhiteClock "0:01:33"]
[BlackClock "0:02:18"]

1. d4 {[%clk 0:02:03]}  Nf6 {[%clk 0:02:59]} 2. c4 {[%clk 0:02:02]}  e6 {[%clk 0:03:00]} 3. Nf3 {[%clk 0:02:02]}  Bb4+ {[%clk 0:03:00]} 4. Nbd2 {[%clk 0:02:02]}  O-O {[%clk 0:03:00]} 5. a3 {[%clk 0:02:01]}  Be7 {[%clk 0:03:00]} 6. e4 {[%clk 0:02:01]}  d5 {[%clk 0:03:00]} 7. e5 {[%clk 0:02:01]}  Nfd7 {[%clk 0:03:00]} 8. Bd3 {[%clk 0:01:58]}  c5 {[%clk 0:03:00]} 9. h4 {[%clk 0:01:58]}  g6 {[%clk 0:03:00]} 10. Nb3 {[%clk 0:01:51]}  Nc6 {[%clk 0:02:50]} 11. h5 {[%clk 0:01:48]}  dxc4 {[%clk 0:02:44]} 12. Bxc4 {[%clk 0:01:48]}  cxd4 {[%clk 0:02:42]} 13. hxg6 {[%clk 0:01:47]}  hxg6 {[%clk 0:02:38]} 14. Qd2 {[%clk 0:01:41]}  g5 {[%clk 0:02:18]} 15. Qd3 {[%clk 0:01:33]} 1-0


[Site "https://www.chess.com"]